bitfinex-derivatives/quotes_ETHF0:USTF0_20251013
["timestamp","ask_amount","ask_price","bid_price","bid_amount"]
[1760370578406,1.0396,4133.0,4132.9,0.247]
[1760370580011,0.7601,4133.9,4133.5,0.43507]
[1760370580204,1.0396,4134.0,4133.7,0.1718]
[1760370580513,0.2814807,4134.5,4133.9,0.1718]
[1760370580712,0.7601,4134.2,4134.0,0.247]
[1760370581315,0.0019807,4134.5,4134.3,0.43498]
[1760370581613,0.0019807,4134.5,4134.4,3.6266]
[1760370581808,0.0019807,4134.5,4134.4,3.4548]
[1760370582418,0.7620807,4134.5,4134.4,3.4548]
[1760370583116,1.0415807,4134.5,4134.4,3.4548]
[1760370583812,0.2795,4134.0,4133.9,3.2078]
[1760370584011,0.2795,4134.0,4133.4,3.2078]
[1760370584012,0.2795,4133.5,4133.4,3.2078]
[1760370584210,1.0396,4133.5,4133.4,3.2078]
[1760370584511,1.60147505,4133.5,4133.4,3.2078]
[1760370584812,1.60147505,4133.5,4133.4,3.4548]
[1760370585212,0.7601,4133.5,4133.4,3.88988]
[1760370585515,0.2795,4134.0,4133.4,3.4548]
[1760370585516,0.6936,4133.9,4133.4,3.4548]
[1760370585715,0.6936,4133.7,4133.4,3.4548]
[1760370586106,0.2795,4134.0,4133.6,0.1508]
[1760370586409,0.6955807,4134.5,4134.3,0.43498]
[1760370586609,0.6955807,4134.5,4134.4,3.4548]
[1760370586809,0.0019807,4134.5,4134.4,3.4548]
[1760370587012,0.0019807,4134.5,4134.4,3.6056]
[1760370587213,0.0019807,4134.5,4134.4,3.4548]
[1760370587517,0.6955807,4134.5,4134.4,3.4548]
[1760370588418,0.0019807,4134.5,4134.4,3.4548]
[1760370588620,0.0019807,4134.5,4134.4,3.604]
[1760370591018,1.43806,4135.5,4134.6,0.1492]
[1760370591321,0.999,4136.0,4135.4,3.2078]
[1760370591518,0.7237,4135.8,4135.5,0.247]
[1760370591715,0.56129622,4135.9,4135.5,0.247]
[1760370591716,0.56129622,4135.7,4135.6,0.58405]
[1760370591910,0.56129622,4135.7,4135.5,0.247]
[1760370591911,0.7237,4136.3,4136.0,0.1492]
[1760370592117,1.71973391,4136.2,4136.1,0.247]
[1760370593221,1.15849,4136.2,4136.1,0.247]
[1760370594220,1.15849,4136.2,4135.3,0.43487]
[1760370594221,0.43483,4135.8,4135.4,3.2078]
[1760370594426,0.7237,4135.7,4135.5,0.68186]
[1760370594724,0.7237,4135.7,4135.5,0.83106]
[1760370595025,0.7237,4135.9,4135.7,0.43483]
[1760370595226,0.7237,4135.9,4135.8,0.247]
[1760370595424,0.43482,4135.9,4135.8,0.247]
[1760370595623,1.15852,4135.9,4135.8,0.247]
[1760370596124,0.7237,4135.9,4135.8,0.247]
[1760370596320,0.7237,4136.4,4135.8,0.247]
[1760370596521,1.1642698,4137.0,4136.3,3.2078]
[1760370596522,0.296,4137.0,4136.3,3.2078]
[1760370596722,0.296,4137.0,4136.4,0.68076]
[1760370596923,0.7237,4136.9,4136.4,0.68076]
[1760370597119,0.296,4137.0,4136.7,0.43473]
[1760370597328,0.296,4137.0,4136.4,0.246]
[1760370597329,0.7237,4137.4,4137.1,0.43469]
[1760370597522,0.7237,4137.4,4137.2,0.246]
[1760370597718,1.15831,4137.9,4137.2,0.246]
[1760370597925,3.2078,4138.6,4137.8,3.2078]
[1760370598119,3.2078,4139.1,4138.6,0.43453]
[1760370598328,3.2078,4139.1,4138.4,3.357]
[1760370598329,0.7237,4139.0,4138.7,0.246]
[1760370598529,0.22,4139.3,4138.9,3.2078]
[1760370598729,0.7237,4139.2,4138.9,3.2078]
[1760370599024,0.43451,4138.9,4138.4,3.2078]
[1760370599330,0.296,4139.0,4138.6,0.58373]
[1760370599528,0.296,4139.0,4138.5,0.3952]
[1760370599529,0.4345,4139.0,4138.5,0.3952]
[1760370599828,0.4345,4139.0,4138.5,0.246]
[1760370599829,0.7237,4138.8,4138.5,0.246]
[1760370600031,0.7237,4138.6,4138.4,3.2078]
[1760370600227,0.7237,4138.8,4138.5,0.246]
[1760370600427,0.43451,4138.9,4138.5,0.246]
[1760370600628,0.296,4139.0,4138.6,0.246]
[1760370600830,0.22,4139.3,4138.9,3.2078]
[1760370601132,0.22,4139.3,4139.1,0.1492]
[1760370601432,0.9437,4139.3,4139.2,0.246]
[1760370601829,2.07102536,4142.1,4139.9,3.2078]
[1760370602136,5.51279425,4143.8,4139.2,0.336]
[1760370602137,0.7237,4142.4,4142.3,0.43415]
[1760370602330,0.296,4143.0,4142.3,0.248]
[1760370602640,1e-08,4143.0,4142.9,3.2078]
[1760370602931,1e-08,4143.0,4142.9,3.4558]
[1760370603533,1e-08,4143.0,4142.9,3.88988]
[1760370603931,1e-08,4143.0,4142.9,3.4558]
[1760370604942,0.72370001,4143.0,4142.9,3.2078]
[1760370605133,0.72370001,4143.0,4142.9,3.4558]
[1760370605627,0.72370001,4143.0,4142.9,0.248]
[1760370606637,0.7237,4141.9,4141.8,3.2078]
[1760370606839,0.7237,4141.9,4141.8,3.4558]
[1760370607235,0.7237,4141.9,4141.8,3.2078]
[1760370607836,0.7237,4141.9,4141.8,3.4558]
[1760370608539,0.7237,4141.9,4141.8,3.2078]
[1760370609940,0.7237,4141.9,4141.8,3.4558]
[1760370610341,0.7237,4141.9,4141.8,3.2078]
[1760370610550,0.7237,4141.9,4141.8,3.4558]
[1760370611144,0.7173,4141.9,4141.8,3.4558]
[1760370612033,0.7173,4141.9,4141.8,3.2078]
[1760370612233,0.7173,4141.9,4141.8,3.4558]
[1760370612940,1.15149,4141.9,4141.8,3.2078]
[1760370613136,0.7173,4141.9,4141.8,3.4558]
[1760370613439,0.296,4142.0,4141.8,3.4558]
[1760370613440,0.296,4142.0,4141.9,0.43419]
[1760370613633,0.296,4143.5,4141.8,3.4558]
[1760370613839,0.296,4143.5,4142.8,3.2078]
[1760370614141,0.296,4143.5,4143.3,0.43404]
[1760370614333,0.296,4143.5,4143.4,0.248]
[1760370614938,0.296,4143.5,4143.4,3.4558]
[1760370615544,0.9963,4143.5,4143.4,3.4558]
[1760370616343,0.296,4143.5,4143.4,3.4558]
[1760370616535,0.2933,4144.0,4143.9,0.43398]
[1760370616737,0.2933,4144.0,4143.9,3.88978]
[1760370617040,0.9963,4144.5,4144.4,0.43393]
[1760370617237,0.9963,4144.5,4144.4,3.4558]
[1760370618639,0.296,4144.5,4144.4,3.4558]
[1760370619041,3.2078,4145.8,4144.4,3.4558]
[1760370619042,0.2933,4147.0,4145.1,11.93085]
[1760370619240,0.2933,4147.0,4146.9,3.2078]
[1760370619441,0.2933,4147.5,4147.3,0.43362]
[1760370619642,0.2933,4147.5,4147.4,3.2078]
[1760370620036,0.2933,4146.5,4146.3,3.2078]
[1760370620236,0.2933,4146.5,4144.9,1.08468]
[1760370620237,0.2933,4146.5,4145.7,3.2078]
[1760370620441,0.2933,4146.0,4145.7,3.2078]
[1760370620947,0.9936,4146.5,4146.2,0.43374]
[1760370621142,0.9936,4146.5,4146.4,3.2078]
[1760370621336,0.7003,4145.9,4145.7,0.248]
[1760370621541,0.7003,4145.9,4145.8,3.2078]
[1760370622344,0.7003,4147.1,4145.9,1.08443]
[1760370622649,2.2637,4147.0,4146.8,3.64146]
[1760370622837,2.2637,4147.0,4146.9,0.248]
[1760370623343,2.557,4147.0,4146.8,3.2078]
[1760370623543,0.7003,4146.9,4146.8,3.2078]
[1760370623843,2.557,4147.0,4146.9,0.43366]
[1760370624042,2.2637,4147.0,4146.9,0.43366]
[1760370624252,0.00272859,4147.5,4147.4,0.43534363]
[1760370624447,0.2933,4148.0,4147.4,0.43534363]
[1760370624448,0.7003,4148.9,4147.4,3.45753363]
[1760370624749,0.7003,4147.9,4147.8,0.43356]
[1760370625042,0.2933,4148.0,4147.9,0.43356]
[1760370625347,0.7003,4147.9,4147.8,3.2078]
[1760370625547,0.7003,4147.9,4147.4,0.00173363]
[1760370625548,0.9936,4147.5,4147.4,0.00173363]
[1760370626043,0.7003,4146.9,4146.6,3.2078]
[1760370626248,0.2933,4147.0,4146.6,3.2078]
[1760370626447,1.13399,4146.7,4146.6,3.04676046]
[1760370626747,0.7003,4146.7,4146.6,3.04676046]
[1760370627255,0.7003,4146.9,4146.6,3.04676046]
[1760370627549,0.7003,4146.9,4146.7,0.43369]
[1760370627739,0.2933,4147.0,4146.6,3.29576046]
[1760370627945,0.2933,4147.0,4146.6,3.04676046]
[1760370628150,0.43367,4146.9,4146.6,3.04676046]
[1760370628344,0.7003,4146.7,4146.6,3.04676046]
[1760370629047,0.7003,4146.7,4146.1,0.249]
[1760370629048,0.7003,4146.4,4146.1,3.2078]
[1760370629345,0.4338,4145.7,4145.2,3.2078]
[1760370629547,0.7003,4145.4,4145.2,3.2078]
[1760370629849,0.7003,4144.8,4144.7,3.2078]
[1760370630351,0.2933,4145.0,4144.2,0.249]
[1760370630352,0.7003,4144.4,4144.2,0.249]
[1760370630942,4.34203,4144.4,4143.6,3.6418]
[1760370631144,0.43401,4143.6,4143.4,0.249]
[1760370631441,0.2933,4144.0,4143.4,0.249]
[1760370631442,0.9936,4143.5,4143.4,0.249]
[1760370631645,0.7003,4143.2,4143.1,3.2078]
[1760370631950,1.13435,4143.2,4143.1,3.2078]
[1760370632157,1.13435,4143.2,4143.1,0.249]
[1760370632451,0.7003,4143.2,4143.1,0.249]
[1760370632753,0.7489,4142.9,4142.5,3.2078]
[1760370633053,0.4341,4142.8,4142.5,3.2078]
[1760370633253,0.43411,4142.7,4142.5,3.2078]
[1760370633548,0.43411,4142.7,4142.6,0.249]
[1760370633853,0.7489,4142.7,4142.6,0.249]
[1760370634458,0.2933,4143.0,4142.5,3.2078]
[1760370634750,0.7489,4142.7,4142.6,0.249]
[1760370635353,0.43419,4141.9,4141.8,3.2078]
[1760370635652,0.3063,4142.0,4141.8,3.4568]
[1760370635844,0.3063,4142.0,4141.9,0.249]
[1760370636450,0.3063,4141.5,4141.3,3.2078]
[1760370636650,0.3063,4141.5,4141.4,0.249]
[1760370637155,0.3063,4141.0,4140.8,3.2078]
[1760370637358,0.3063,4141.0,4140.9,0.25]
[1760370637359,1.0552,4141.0,4140.9,0.25]
[1760370637753,0.3063,4141.0,4140.9,0.25]
[1760370637949,0.3063,4141.0,4140.8,3.6421]
[1760370637950,0.7489,4140.9,4140.8,3.6421]
[1760370638148,0.7489,4140.9,4140.8,3.8921]
[1760370639050,0.3063,4141.5,4141.4,0.43424]
[1760370639250,0.3063,4141.5,4141.4,3.89204]
[1760370640157,0.3063,4142.0,4141.9,0.43419]
[1760370640347,0.3063,4142.0,4141.9,3.89199]
[1760370640547,0.3063,4142.5,4142.4,0.43414]
[1760370640747,0.3063,4142.5,4142.4,3.89194]
[1760370640943,0.00276636,4142.8,4142.7,0.4341]
[1760370641144,1.0552,4143.5,4143.4,0.43403]
[1760370641349,1.0552,4143.5,4143.4,3.89183]
[1760370641555,0.3063,4143.5,4143.4,3.89183]
[1760370641751,0.7489,4143.9,4143.8,0.43399]
[1760370641957,0.7489,4143.9,4143.8,0.68399]
[1760370642756,0.3063,4144.0,4143.8,0.68399]
[1760370642957,1.0552,4144.0,4143.9,3.2078]
[1760370643155,1.0552,4144.0,4143.9,3.4578]
[1760370643554,1.05746204,4144.0,4143.9,3.45962944]
[1760370644254,0.7489,4142.9,4142.8,3.2078]
[1760370644552,0.30856204,4144.0,4143.4,0.43403]
[1760370644751,0.00226204,4144.0,4143.8,0.43399]
[1760370644948,0.3063,4144.5,4144.4,0.43393]
[1760370645144,0.7489,4144.9,4144.4,3.89173]
[1760370645345,1.0552,4145.5,4145.4,0.43382]
[1760370645550,0.3063,4145.5,4145.4,0.68382]
[1760370645955,0.3063,4146.0,4145.9,0.43377]
[1760370646150,1.048,4146.0,4145.9,0.25]
[1760370646357,1.05706912,4145.5,4145.4,0.00195378]
[1760370646756,4.26486912,4145.5,4145.4,0.00195378]
[1760370648455,1.0552,4144.5,4144.4,0.43392]
[1760370648655,0.3135,4145.0,4144.4,0.43392]
[1760370648656,0.31536912,4145.5,4145.4,0.43382]
[1760370648856,0.00186912,4145.5,4145.4,3.89162]
[1760370649057,0.7582,4145.8,4145.7,0.43379]
[1760370649253,0.2877,4145.5,4145.2,0.43384]
[1760370649457,0.7582,4145.4,4145.3,0.25]
[1760370649661,0.7582,4145.4,4144.8,0.43388]
[1760370649662,0.7582,4144.9,4144.8,0.43388]
[1760370649960,1.19207,4144.9,4144.8,0.25]
[1760370650159,0.2877,4143.5,4143.2,0.43405]
[1760370650355,0.7582,4143.4,4143.1,3.2078]
[1760370650555,0.7582,4143.4,4143.3,0.43404]
[1760370650853,0.7582,4143.4,4143.1,3.20958768]
[1760370651053,1.19225,4143.3,4143.2,0.25]
[1760370651253,1.19225,4143.3,4143.1,0.00178768]
[1760370651450,0.43405,4143.3,4143.1,0.00178768]
[1760370651652,0.7582,4143.2,4143.1,0.00178768]
[1760370652257,0.2877,4142.0,4141.6,3.2078]
[1760370652560,0.2877,4142.0,4141.8,0.43419]
[1760370652561,0.7582,4141.9,4141.8,0.43419]
[1760370652762,0.2877,4142.0,4141.6,3.4578]
[1760370652963,0.2877,4142.0,4141.6,3.89201]
[1760370653258,0.7582,4141.9,4141.6,3.4578]
[1760370653457,0.43419,4141.9,4141.6,3.4578]
[1760370653663,0.7582,4141.7,4141.6,3.4578]
[1760370654674,0.7582,4141.7,4141.1,0.43427]
[1760370654675,0.2877,4141.5,4141.1,3.2078]
[1760370654858,0.7582,4141.4,4141.2,0.68426]
[1760370655163,1.0459,4142.0,4141.9,0.43419]
[1760370655366,1.0459,4142.5,4142.4,0.43414]
[1760370655657,0.2877,4142.5,4142.4,3.89294]
[1760370656162,0.7582,4141.9,4141.8,3.2078]
[1760370656456,0.7582,4141.9,4141.8,3.4588]
[1760370656660,0.7582,4141.9,4141.8,0.251]
[1760370656859,0.7582,4141.9,4141.8,3.4588]
[1760370657061,0.7582,4141.9,4141.8,3.893]
[1760370657255,0.2877,4142.0,4141.8,3.893]
[1760370657661,0.00272699,4142.5,4142.3,0.43415]
[1760370657869,1.0459,4142.5,4142.4,3.2078]
[1760370658067,1.0459,4142.5,4142.4,3.4588]
[1760370658263,0.43414,4142.4,4141.9,3.2078]
[1760370658467,1.0459,4142.5,4141.9,3.2078]
[1760370658468,1.0459,4142.0,4141.9,3.2078]
[1760370658666,1.0459,4142.0,4141.8,0.251]
[1760370658966,0.2877,4141.5,4141.2,3.20957643]
[1760370659159,0.7582,4141.3,4141.2,3.20957643]
[1760370659356,0.2877,4141.5,4141.4,0.43423]
[1760370659558,0.29002418,4142.0,4141.9,0.43419]
[1760370659763,1.04822418,4142.0,4141.9,3.64199]
[1760370659966,0.00232418,4142.0,4141.9,3.89299]
[1760370660471,1.04822418,4142.0,4141.9,3.89299]
[1760370660672,0.72183,4142.5,4142.4,0.43414]
[1760370660673,0.2877,4142.5,4142.4,0.43414]
[1760370660873,0.7582,4142.9,4142.8,0.43409]
[1760370661163,0.7582,4142.9,4142.8,0.251]
[1760370662068,0.72178,4143.0,4142.4,3.2078]
[1760370662069,1.0459,4142.5,4142.4,3.2078]
[1760370662264,1.0459,4142.5,4142.4,3.4588]
[1760370662565,1.0459,4142.5,4141.5,1.27181075]
[1760370662566,0.2877,4142.0,4141.8,3.2078]
[1760370662866,0.7582,4141.9,4141.8,3.2078]
[1760370664163,0.7582,4141.4,4141.3,3.2078]
[1760370666367,0.2877,4141.5,4141.3,3.2078]
[1760370666368,0.7582,4141.9,4141.7,0.4342]
[1760370666573,0.7582,4141.9,4141.8,3.89299]
[1760370667174,0.7582,4141.9,4141.8,3.2078]
[1760370667472,0.7582,4141.9,4141.8,3.4588]
[1760370667862,0.72188,4142.0,4141.3,3.2078]
[1760370667863,0.7582,4141.4,4141.3,3.2078]
[1760370668077,0.7582,4141.4,4141.3,3.89304]
[1760370669566,0.7582,4141.4,4141.3,3.2078]
[1760370669767,0.72193,4141.5,4141.2,0.00177643]
[1760370669768,0.43425,4141.3,4141.2,0.00177643]
[1760370669973,0.7582,4141.3,4141.2,0.25277643]
[1760370670866,0.7582,4141.3,4141.2,0.00177643]
[1760370671664,1.08515,4143.2,4141.2,0.00177643]
[1760370671665,0.7582,4142.7,4142.4,0.43413]
[1760370671877,0.00303049,4142.5,4142.4,3.89293]
[1760370672076,1.04893049,4142.5,4142.4,3.89293]
[1760370672375,0.29073049,4142.5,4142.4,3.89293]
[1760370672576,0.2877,4143.5,4143.4,0.43403]
[1760370672776,1.0459,4143.5,4143.4,0.68503]
[1760370672980,0.2877,4143.5,4143.4,0.68503]
[1760370673174,1.0459,4143.5,4143.4,0.68503]
[1760370673470,0.2877,4143.5,4143.1,3.2078]
[1760370673677,0.2877,4143.5,4143.2,0.251]
[1760370673972,0.72172,4143.5,4143.2,0.68504]
[1760370674277,0.7582,4143.4,4143.1,3.2078]
[1760370674480,0.2877,4143.5,4143.2,0.251]
[1760370674884,0.7582,4143.4,4143.2,0.251]
[1760370675077,1.19223,4143.4,4143.2,0.251]
[1760370676175,0.3006,4142.5,4142.3,0.43414]
[1760370676477,0.7087,4142.4,4142.3,0.43414]
[1760370676780,0.7087,4142.9,4142.8,0.43409]
[1760370677076,0.7087,4142.9,4142.8,3.64189]
[1760370677378,0.7087,4142.4,4142.3,0.43414]
[1760370677578,0.7087,4142.4,4142.2,3.2078]
[1760370677579,0.7087,4142.3,4142.2,3.2078]
[1760370677769,0.7087,4142.3,4142.2,3.4588]
[1760370680487,0.7087,4141.9,4141.6,3.2078]
[1760370680783,0.3006,4142.0,4141.6,3.2078]
[1760370680784,1.14291,4141.7,4141.6,3.2078]
[1760370681083,1.14291,4141.7,4141.2,0.00177643]
[1760370681084,0.43425,4141.3,4141.2,0.00177643]
[1760370681382,0.7087,4141.3,4141.2,0.25277643]
[1760370684075,0.7087,4141.3,4141.2,0.00177643]
[1760370686286,0.7087,4141.3,4141.2,3.46057643]
[1760370686686,0.7087,4141.3,4141.2,3.20957643]
[1760370687183,0.7087,4141.3,4141.2,3.46057643]
[1760370687386,0.7087,4141.3,4141.2,0.00177643]
[1760370688789,3.83536305,4141.3,4141.2,0.00177643]
[1760370688988,1.14305,4140.4,4140.2,0.251]
[1760370689483,1.14305,4140.4,4140.2,0.68536]
[1760370689688,1.14305,4140.4,4140.3,0.251]
[1760370689689,0.7087,4140.4,4140.3,0.251]
[1760370690083,0.7111633,4140.4,4140.3,0.2540968]
[1760370690287,0.7087,4139.7,4139.6,3.2078]
[1760370690493,1.14313,4139.6,4139.5,0.251]
[1760370690693,1.44374,4139.5,4139.4,0.251]
[1760370690896,1.0093,4139.5,4139.4,0.251]
[1760370691690,1.0093,4139.5,4139.4,0.25307719]
[1760370691887,0.43457,4138.3,4138.2,1.27181075]
[1760370692086,0.43457,4138.3,4136.9,6.23204703]
[1760370692087,0.7087,4137.9,4137.5,0.43464]
[1760370692292,0.7087,4137.9,4137.8,3.64242]
[1760370692487,0.7087,4137.9,4137.8,3.89342]
[1760370692795,0.7087,4137.9,4137.8,3.895854]
[1760370693892,0.7087,4137.9,4137.8,0.253434]
[1760370694091,0.7087,4137.9,4137.8,3.895854]
[1760370694293,1.0093,4138.5,4138.4,0.43455]
[1760370694484,1.0093,4138.5,4138.4,0.68555]
[1760370694895,0.3006,4138.5,4137.8,3.210234]
[1760370695097,1.0093,4138.5,4138.4,0.43455]
[1760370695292,1.0093,4138.5,4138.4,0.68555]
[1760370696500,0.3006,4139.0,4138.6,0.43453]
[1760370696797,0.3006,4139.0,4138.7,0.43452]
[1760370696990,0.7087,4138.9,4138.8,0.251]
[1760370698899,1.0093,4139.5,4139.4,0.43445]
[1760370699396,0.3006,4140.0,4139.8,0.43441]
[1760370699598,0.3006,4140.0,4139.9,0.251]
[1760370700003,0.7087,4140.3,4140.2,0.43437]
[1760370700205,0.7087,4140.9,4140.2,0.43437]
[1760370700894,0.7087,4141.4,4141.3,0.43425]
[1760370701102,0.7087,4141.4,4141.3,0.68525]
[1760370701803,0.7087,4141.4,4141.3,3.89305]
[1760370701995,0.7118386,4141.4,4141.3,3.8953469]
[1760370703593,0.7118386,4141.4,4141.3,0.0022969]
[1760370706504,0.7118386,4141.4,4141.3,0.2532969]
[1760370707210,0.7118386,4141.4,4141.3,0.0022969]
[1760370707412,0.7118386,4141.4,4141.3,0.2532969]
[1760370708710,0.7118386,4141.4,4141.3,0.0022969]
[1760370708904,0.7118386,4141.4,4141.3,0.2532969]
[1760370709110,0.7118386,4141.4,4141.3,0.0022969]
[1760370710112,0.0031386,4141.4,4141.3,0.0022969]
[1760370710307,0.7530386,4141.4,4141.3,0.0022969]
[1760370711215,1.1872786,4141.4,4141.3,0.0022969]
[1760370711516,1.0434,4141.0,4140.9,0.68529]
[1760370712412,1.0434,4141.0,4140.9,0.68731838]
[1760370712819,0.2935,4140.5,4139.9,3.2078]
[1760370713116,0.7499,4139.9,4139.8,0.4344]
[1760370713418,0.7499,4139.9,4139.4,4.29392]
[1760370713419,1.0434,4139.5,4139.4,3.64225]
[1760370713808,1.0434,4139.5,4139.4,3.89592232]
[1760370715413,1.0434,4139.5,4139.4,0.25367232]
[1760370716313,1.0434,4139.5,4139.4,0.00267232]
[1760370717206,0.2935,4139.5,4139.4,0.00267232]
[1760370717409,1.0434,4139.5,4139.4,3.21047232]
[1760370718210,1.0434,4139.5,4139.4,0.25267232]
[1760370718608,1.0434,4139.5,4139.4,0.25367232]
[1760370719209,1.0434,4139.5,4139.4,0.00267232]
[1760370719716,1.0434,4139.5,4139.4,0.43712232]
[1760370720813,1.0434,4140.0,4139.9,0.4344]
[1760370721008,1.0434,4140.0,4139.4,0.00267232]
[1760370721215,1.0434,4140.0,4139.5,0.251]
[1760370721420,0.2935,4140.0,4139.9,0.4344]
[1760370721608,0.2935,4140.5,4140.4,0.43434]
[1760370721814,0.2935,4140.5,4139.8,0.251]
[1760370721815,0.2935,4140.0,4139.8,0.251]
[1760370722021,1.0434,4139.5,4139.4,0.43712232]
[1760370722311,0.2935,4139.5,4139.4,0.68812232]
[1760370722513,1.0434,4140.0,4139.9,0.4344]
[1760370722717,1.0434,4140.0,4139.9,0.6854]
[1760370722919,1.0434,4140.5,4140.4,0.43434]
[1760370724024,1.0434,4140.5,4140.4,0.68534]
[1760370726617,0.7499,4139.9,4139.8,3.64221]
[1760370726818,0.7499,4139.9,4139.4,0.00267232]
[1760370727119,0.2935,4140.0,4139.4,0.00267232]
[1760370727120,1.0434,4139.5,4139.4,0.00267232]
[1760370727626,1.0434,4139.5,4138.3,0.43457]
[1760370727627,0.7499,4138.4,4138.3,0.43457]
[1760370727822,0.7499,4138.4,4138.3,0.68557]
[1760370728023,0.7499,4138.4,4138.3,0.251]
[1760370728627,0.7499,4137.9,4137.8,0.43462]
[1760370728920,0.7499,4137.9,4137.8,0.00304424]
[1760370729524,0.2935,4137.5,4137.2,3.89348]
[1760370729729,0.2935,4137.5,4137.2,3.4588]
[1760370729928,0.7499,4137.4,4137.2,3.4588]
[1760370730230,0.2935,4137.5,4136.8,0.43472]
[1760370730231,0.7499,4136.9,4136.8,0.43472]
[1760370730421,0.7499,4136.9,4136.8,0.68572]
[1760370730720,0.7499,4136.9,4136.8,0.6875847]
[1760370730922,0.7499,4137.4,4136.8,0.2528647]
[1760370731127,0.2935,4137.5,4136.9,2.17358]
[1760370731423,0.2935,4137.5,4137.3,0.43467]
[1760370731424,0.7499,4137.4,4137.3,0.43467]
[1760370731617,0.7499,4137.4,4137.3,0.68567]
[1760370731823,0.7499,4136.9,4136.8,0.0018647]
[1760370732023,0.7499,4136.9,4136.8,0.6875847]
[1760370732626,0.7499,4136.9,4136.8,0.2528647]
[1760370733922,0.7499,4137.9,4136.8,0.2528647]
[1760370734127,3.2078,4138.6,4137.9,0.43461]
[1760370734325,3.2078,4138.6,4138.3,0.43457]
[1760370734627,0.2935,4138.5,4138.3,0.43457]
[1760370734825,0.72805,4138.5,4138.1,0.43458]
[1760370735128,0.72805,4138.5,4136.9,3.2078]
[1760370735129,0.43467,4137.4,4136.9,3.2078]
[1760370735329,0.2935,4137.0,4136.4,3.2078]
[1760370735532,0.2935,4137.0,4136.9,0.251]
[1760370735728,0.2935,4137.5,4137.3,0.43466]
[1760370735927,0.2935,4138.0,4137.8,0.43461]
[1760370736231,0.7323,4137.9,4137.8,0.43461]
[1760370736427,0.7323,4137.4,4137.0,0.43469]
[1760370736631,0.7323,4136.9,4136.8,0.2528647]
[1760370736932,0.7323,4136.9,4136.8,0.6875847]
[1760370737429,3.2078,4137.4,4136.8,0.6875847]
[1760370737430,3.9401,4137.4,4137.3,0.43467]
[1760370737630,3.9401,4137.4,4137.1,0.43468]
[1760370737828,1.0262,4137.0,4136.9,0.43471]
[1760370738025,0.2939,4137.0,4136.8,0.0018647]
[1760370738227,0.7323,4136.9,4136.8,0.0018647]
[1760370738620,1.08683,4136.8,4135.4,3.2078]
[1760370738819,7.35384023,4136.9,4135.4,3.2078]
[1760370738820,0.2939,4135.5,4135.4,3.2078]
[1760370739021,0.2939,4135.5,4135.4,0.251]
[1760370739022,1.0262,4135.5,4135.4,0.251]
[1760370739224,0.2939,4135.5,4134.9,3.2078]
[1760370739424,0.7323,4135.4,4135.1,0.251]
[1760370739622,1.16717,4135.4,4135.2,0.24381684]
[1760370739828,0.7323,4135.3,4135.2,0.67869684]
[1760370740232,0.7323,4135.3,4135.2,0.24381684]
[1760370740533,0.00227544,4135.4,4135.3,0.43488]
[1760370740729,0.73457544,4135.4,4135.3,0.43488]
[1760370741428,0.00227544,4135.4,4135.3,0.43488]
[1760370741631,1.0262,4136.5,4136.4,0.43476]
[1760370741832,0.7323,4136.4,4136.3,0.251]
[1760370742028,0.2939,4136.0,4135.8,0.43482]
[1760370742227,0.2939,4136.0,4135.7,0.68583]
[1760370742530,0.7323,4135.9,4135.7,0.251]
[1760370742735,0.29699385,4136.0,4135.7,0.68583]
[1760370743031,0.7323,4135.9,4135.2,0.24381684]
[1760370743334,1.02929385,4136.0,4135.9,0.43482]
[1760370743736,0.00309385,4136.0,4135.9,0.61072]
[1760370743929,0.00309385,4136.0,4135.9,0.43482]
[1760370744133,1.02929385,4136.0,4135.9,0.68582]
[1760370745029,1.02929385,4136.0,4135.9,0.43482]
[1760370745236,1.02929385,4136.0,4135.9,0.68582]
[1760370746233,0.7323,4135.4,4135.3,3.2078]
[1760370746536,4.37497,4135.4,4135.2,0.24381684]
[1760370746927,0.2939,4135.0,4134.7,3.2078]
[1760370747133,0.2939,4135.0,4134.7,0.43494]
[1760370747332,0.2939,4135.0,4134.4,0.251]
[1760370747333,1.0262,4135.0,4134.4,0.251]
[1760370747535,1.0262,4135.0,4134.7,0.43494]
[1760370747733,1.46111,4135.0,4134.7,0.43494]
[1760370747932,1.0262,4135.0,4134.8,0.43493]
[1760370748233,3.9401,4135.3,4135.2,0.43489]
[1760370748434,0.7323,4135.3,4135.2,0.43489]
[1760370748940,1.0262,4135.0,4134.9,0.43492]
[1760370749235,0.2939,4135.5,4134.9,0.43492]
[1760370749236,0.7323,4135.5,4135.4,0.43487]
[1760370749439,1.02929385,4136.0,4135.9,0.43482]
[1760370749737,1.02929385,4136.0,4134.9,3.2078]
[1760370749738,0.7323,4135.4,4135.3,0.43488]
[1760370750429,3.9401,4135.8,4135.7,0.43484]
[1760370750740,0.7323,4135.6,4135.1,0.252]
[1760370750936,0.7323,4135.6,4135.5,0.43486]
[1760370752134,0.00309385,4136.0,4135.9,0.43482]
[1760370752441,0.7323,4136.7,4136.3,1.26285]
[1760370752635,0.7323,4136.7,4136.6,0.43474]
[1760370753531,0.73535673,4136.7,4136.6,0.43474]
[1760370754027,0.73535673,4136.7,4135.9,3.2078]
[1760370754227,1.0262,4136.0,4135.8,0.43482]
[1760370754443,0.7323,4135.9,4135.8,0.43482]
[1760370754831,0.7323,4136.4,4136.3,0.43478]
[1760370755730,3.94315673,4136.7,4136.6,0.43474]
[1760370755935,0.00305673,4136.7,4136.6,0.43474]